lending/lending_fUSD_20240111
["ID","MTS","AMOUNT","RATE_DAILY","PERIOD"]
[311171630,1704963044860,-150.51,0.00036489,2]
[311171631,1704963044869,-150.51,0.00036489,2]
[311171632,1704963044879,-150.51,0.00036489,2]
[311171633,1704963044889,-150.51,0.00036489,2]
[311171634,1704963044898,-150.51,0.00036489,2]
[311171635,1704963044907,-150.51,0.00036489,2]
[311171636,1704963044917,-150.51,0.00036489,2]
[311171637,1704963044926,-150.51,0.00036489,2]
[311171638,1704963044935,-150.51,0.00036489,2]
[311171639,1704963044944,-150.51,0.00036489,2]
[311171640,1704963044954,-150.51,0.00036489,2]
[311171641,1704963044963,-150.51,0.00036489,2]
[311171642,1704963044972,-150.51,0.00036489,2]
[311171643,1704963044981,-150.51,0.00036489,2]
[311171644,1704963044995,-150.51,0.00036489,2]
[311171645,1704963045005,-150.51,0.00036489,2]
[311171646,1704963045015,-150.51,0.00036489,2]
[311171647,1704963045024,-308.71,0.00036489,2]
[311171648,1704963045034,-475.0,0.00036493,4]
[311171649,1704963045043,-905.19011952,0.00036497,2]
[311171650,1704963045053,-151.40111,0.00036498,4]
[311171651,1704963045062,-284.137332,0.00036499,7]
[311171652,1704963045071,-284.137332,0.00036499,7]
[311171653,1704963045081,-232.123374,0.00036499,7]
[311171654,1704963045090,-232.123374,0.00036499,7]
[311171655,1704963045100,-1725.14884667,0.00036499,2]
[311171656,1704963045109,-404.230419,0.00036499,7]
[311171657,1704963045119,-404.230419,0.00036499,7]
[311171658,1704963045129,-151.0,0.000365,7]
[311171659,1704963045138,-151.0,0.000365,7]
[311171660,1704963045147,-59256.40638462,0.000365,2]
[311171661,1704963045184,-63.06363862,0.000365,2]
[311171664,1704963046071,-69346.5,0.000365,2]
[311171665,1704963046189,-433.48386235,0.000365,2]
[311171666,1704963046243,-69347.54951628,0.000365,2]
[311171667,1704963046353,-515.49973707,0.000365,2]
[311171668,1704963046368,-45241.778736,0.000365,2]
[311171669,1704963070076,52852.11057001,0.00023,2]
[311171670,1704963070102,404789.22319882,0.00023,2]
[311171671,1704963070133,481887.05735703,0.00023,2]
[311171672,1704963114168,25813.84083435,0.0002399,2]
[311171674,1704963232391,206584.40820793,0.00023,2]
[311171677,1704963265094,182.36477019,0.000137,2]
[311171678,1704963458078,-1000.0,0.00029764,2]
[311171679,1704963458098,-313.85189118,0.00029765,2]
[311171680,1704963458117,-177.6089,0.00029765,2]
[311171681,1704963458137,-217.66674119,0.00029766,2]
[311171682,1704963458157,-155.0,0.00029767,2]
[311171683,1704963458309,-1001.63104037,0.00029767,2]
[311171684,1704963458332,-203.28276805,0.00029777,2]
[311171685,1704963458352,-300.0,0.00029779,2]
[311171686,1704963458372,-150.0,0.00029779,2]
[311171687,1704963458391,-3980.95865921,0.0002978,2]
[311171688,1704963597624,350.0,0.00025,3]
[311171689,1704963598742,400.0,0.00027,3]
[311171691,1704963888219,-1000.0,0.00028874,2]
[311171692,1704963888242,-177.6089,0.00028875,2]
[311171693,1704963888265,-493.91108141,0.00028875,2]
[311171694,1704963888288,-15892.30017571,0.00028999,2]
[311171695,1704963888312,-450.0,0.00029,3]
[311171696,1704963888337,-399.14468343,0.0002948,2]
[311171697,1704963888360,-165.88729188,0.0002948,2]
[311171698,1704963888383,-157.91032727,0.000297,2]
[311171699,1704963888407,-316.64388045,0.00029779,2]
[311171700,1704963888431,-155.99031637,0.00029779,2]
[311171701,1704963888453,-258.05784905,0.00029779,2]
[311171702,1704963888475,-150.0,0.00029779,2]
[311171703,1704963888498,-25181.22155303,0.00029779,2]
[311171704,1704963888520,-144755.30852564,0.0002978,2]
[311171705,1704963888542,-7589.85531132,0.000298,2]
[311171706,1704963888564,-4998.91887047,0.0003,4]
[311171707,1704963888587,-2420.05567297,0.0003,2]
[311171708,1704963915886,-386.75,0.00030432,2]
[311171709,1704963915911,-157.91032725,0.00030729,2]
[311171710,1704963915936,-500.0,0.00031,3]
[311171711,1704963915960,-1127.273258,0.000314,2]
[311171712,1704963915985,-157.91032725,0.00031757,2]
[311171713,1704963916007,-500.0,0.000319,2]
[311171714,1704963916031,-221.38,0.00032067,2]
[311171715,1704963916053,-1747.08,0.00032071,2]
[311171716,1704963916076,-522.54402972,0.000321,2]
[311171717,1704963916097,-1237.11,0.00032102,2]
[311171718,1704963916119,-150.0,0.00032392,2]
[311171719,1704963916142,-1000.0,0.000324,2]
[311171720,1704963916166,-527.65,0.00032421,2]
[311171721,1704963916188,-634.86,0.0003257,2]
[311171722,1704963916211,-163.47,0.00032619,2]
[311171723,1704963916237,-386.75,0.00032696,2]
[311171724,1704963916262,-151.81,0.00032723,2]
[311171725,1704963916285,-814.0,0.00032757,2]
[311171726,1704963916307,-499.99,0.00032757,2]
[311171727,1704963916330,-157.91032725,0.00032786,2]
[311171728,1704963916352,-161.57,0.00032859,2]
[311171729,1704963916375,-767.75,0.00032877,15]
[311171730,1704963916398,-219.61,0.00032899,2]
[311171731,1704963916420,-769.68900182,0.000329,2]
[311171732,1704963916442,-550.0,0.00033,3]
[311171733,1704963916469,250.0,0.00032515,2]
[311171734,1704963919741,12114.48321415,0.00029,2]
[311171735,1704963933465,-1000.0,0.000334,2]
[311171736,1704963933488,-1000.0,0.00033462,2]
[311171737,1704963933511,-2021.12972152,0.00033503,2]
[311171738,1704963933533,-5000.0,0.00033504,15]
[311171739,1704963933557,-157.91032725,0.00033814,2]
[311171740,1704963933581,-219.61,0.00033878,2]
[311171741,1704963933603,-297.86239053,0.00034,14]
[311171742,1704963933625,-13709.81380854,0.00034,2]
[311171743,1704963941369,245.91,0.00033709,2]
[311171744,1704963945702,1624.45,0.00033698,2]
[311171745,1704963948395,-1000.0,0.00034116,4]
[311171746,1704963948422,-150.78,0.00034117,2]
[311171747,1704963948445,-172.77,0.00034142,2]
[311171748,1704963948469,-664.62448731,0.00034152,4]
[311171749,1704963948494,-14884.2601645,0.00034152,4]
[311171750,1704963948519,-2500.0,0.000342,2]
[311171751,1704963948541,-2004.0,0.000342,2]
[311171752,1704963948567,-150.78,0.0003433,2]
[311171753,1704963948589,-1000.0,0.00034399,2]
[311171754,1704963948612,-1000.0,0.000344,2]
[311171755,1704963948635,-581.19829811,0.0003442,7]
[311171756,1704963948658,-330.77392083,0.0003442,2]
[311171757,1704963948684,-151.81,0.00034429,2]
[311171758,1704963948708,-1178.67390105,0.00034489,7]
[311171759,1704963948736,-305.1055,0.00034498,4]
[311171760,1704963948762,-240.15289726,0.00034499,14]
[311171761,1704963948786,-217502.2287,0.00034499,2]
[311171762,1704963948809,-1723.967691,0.0003452,2]
[311171763,1704963948832,-2389.39,0.00034521,2]
[311171764,1704963948857,-150.78,0.00034543,2]
[311171765,1704963948881,-235.73478021,0.00034589,7]
[311171766,1704963948904,-9003.0,0.000346,2]
[311171767,1704963948929,-151.40111,0.00034698,2]
[311171768,1704963948957,-150.78,0.00034756,2]
[311171769,1704963948981,-2585.951537,0.00034794,2]
[311171770,1704963949004,-2286.0,0.000348,2]
[311171771,1704963949027,-1000.0,0.000348,2]
[311171772,1704963949050,-774.0,0.000348,2]
[311171773,1704963949075,-157.91032725,0.00034843,2]
[311171774,1704963949099,-219.61,0.00034856,2]
[311171775,1704963949125,-151.40111,0.00034898,2]
[311171776,1704963949149,-3000.0,0.000349,8]
[311171777,1704963949173,-8796.08,0.000349,2]
[311171778,1704963949197,-235.73478021,0.000349,7]
[311171779,1704963949222,-3000.0,0.0003491,8]
[311171780,1704963949247,-3000.0,0.0003492,8]
[311171781,1704963949271,-3000.0,0.0003493,8]
[311171782,1704963949295,-3447.935383,0.00034931,2]
[311171783,1704963949318,-5581.495426,0.0003494,8]
[311171784,1704963949342,-386.75,0.0003496,2]
[311171785,1704963949370,-150.78,0.0003497,2]
[311171786,1704963949395,-235.73478021,0.0003499,8]
[311171787,1704963949420,-276.02829775,0.00034999,2]
[311171788,1704963949443,-155.0,0.00034999,4]
[311171789,1704963949466,-270.15196115,0.00034999,4]
[311171790,1704963949493,-302.93423224,0.00034999,2]
[311171791,1704963949517,-100000.0,0.00035,2]
[311171792,1704963949542,-34514.65719953,0.00035,2]
[311171793,1704963949715,-4635.26547838,0.00035,2]
[311171794,1704963949741,-4904.41895194,0.00035,30]
[311171795,1704963949766,-600.0,0.00035,3]
[311171796,1704963952830,2153.66096984,0.000335,15]
[311171797,1704963955609,1000.0,0.00034918,2]
[311171798,1704963962490,155.19155234,0.00033118,4]
[311171799,1704963979598,1000.0,0.00034918,2]
[311171800,1704963993974,204.0,0.00034805,2]
[311171801,1704963996728,-4309.919229,0.00035068,2]
[311171802,1704963996758,-4309.919229,0.00035068,2]
[311171803,1704963996789,-151.40111,0.00035098,4]
[311171804,1704963996819,-150.78,0.00035183,2]
[311171805,1704963996846,-153.84,0.00035257,2]
[311171806,1704963996874,-151.40111,0.00035298,4]
[311171807,1704963996899,-200.0,0.00035341,3]
[311171808,1704963996923,-6033.886921,0.00035342,2]
[311171809,1704963996949,-150.78,0.00035396,2]
[311171810,1704963996972,-1000.0,0.000354,2]
[311171811,1704963996997,-151.40111,0.00035498,4]
[311171812,1704963997023,-472.35,0.00035512,2]
[311171813,1704963997046,-270.77824039,0.00035605,2]
[311171814,1704963997071,-150.78,0.00035609,2]
[311171815,1704963997093,-150.0,0.00035616,2]
[311171816,1704963997117,-151.40111,0.00035698,4]
[311171817,1704963997139,-167.0,0.00035774,2]
[311171818,1704963997161,-2389.39,0.00035798,2]
[311171819,1704963997185,-13976.90514978,0.00035818,11]
[311171820,1704963997208,-271.67044081,0.00035818,11]
[311171821,1704963997232,-150.78,0.00035823,2]
[311171822,1704963997258,-219.61,0.00035835,2]
[311171823,1704963997282,-157.91032725,0.00035871,2]
[311171824,1704963997307,-151.40111,0.00035898,4]
[311171825,1704963997328,-1940.45631401,0.000359,2]
[311171826,1704963997349,-150.0,0.00035909,2]
[311171827,1704963997373,-4474.46999999,0.00035998,2]
[311171828,1704963997395,-155.061594,0.00035998,4]
[311171829,1704963997417,-1000.0,0.00035998,4]
[311171830,1704963997439,-198.05521132,0.00035998,4]
[311171831,1704963997461,-4359.448406,0.00035998,2]
[311171832,1704963997483,-150.0,0.00035999,2]
[311171833,1704963997506,-186.93691744,0.00035999,7]
[311171834,1704963997531,-100000.0,0.00036,3]
[311171835,1704963997553,-151.0,0.00036,7]
[311171836,1704963997575,-151.0,0.00036,7]
[311171837,1704963997597,-293.684508,0.00036,7]
[311171838,1704963997619,-151.0,0.00036,7]
[311171839,1704963997643,-2286.0,0.00036,2]
[311171840,1704963997667,-176.05,0.00036,2]
[311171841,1704963997690,-151.66415059,0.00036,20]
[311171842,1704963997712,-1942.07419131,0.00036,4]
[311171843,1704963997798,1000.0,0.00034918,2]
[311171844,1704964003340,176.05,0.00036,2]
[311171845,1704964015332,577.88,0.00035384,2]
[311171846,1704964019608,1000.0,0.00035306,10]
[311171847,1704964024040,917.593,0.00034399,2]
[311171848,1704964027004,205.6254,0.000359,2]
[311171849,1704964037606,1000.0,0.00035306,10]
[311171850,1704964039671,1070.1555,0.000359,2]
[311171851,1704964053100,-150.78,0.00036036,2]
[311171852,1704964053120,-593.2292907,0.00036047,2]
[311171853,1704964055648,1000.0,0.00035306,10]
[311171854,1704964059422,22377.35307998,0.00035818,11]
[311171855,1704964073617,1000.0,0.00035306,10]
[311171857,1704964079017,703.77,0.00035371,15]
[311171858,1704964087895,605.0,0.00036,7]
[311171859,1704964093614,1000.0,0.00035306,10]
[311171860,1704964098254,374.82,0.00033468,2]
[311171861,1704964098597,374.82,0.00035732,2]
[311171862,1704964107920,-1000.0,0.00036046,4]
[311171863,1704964107944,-255.48166725,0.00036047,2]
[311171864,1704964107967,-1350.28833619,0.00036058,2]
[311171865,1704964107989,-1500.0,0.00036085,2]
[311171866,1704964108013,-1500.0,0.00036085,2]
[311171867,1704964108038,-151.40111,0.00036098,6]
[311171868,1704964108061,-190.25,0.0003611,2]
[311171869,1704964108084,-150.0,0.0003611,2]
[311171870,1704964108107,-150.0,0.0003611,2]
[311171871,1704964108129,-182.9349,0.0003613,2]
[311171872,1704964108151,-264.96451937,0.00036133,4]
[311171873,1704964108173,-264.22,0.00036133,2]
[311171874,1704964108200,-211.36699584,0.00036133,14]
[311171875,1704964108224,-150.0,0.00036166,2]
[311171876,1704964108247,-1350.28833619,0.00036189,2]
[311171877,1704964108269,-1500.0,0.0003623,2]
[311171878,1704964108295,-150.78,0.00036249,2]
[311171879,1704964108318,-5828.35103305,0.00036285,14]
[311171880,1704964108342,-151.40111,0.00036298,6]
[311171881,1704964108370,-153.84,0.00036326,2]
[311171882,1704964108393,-302.78,0.00036342,2]
[311171883,1704964108421,-161.82,0.00036342,2]
[311171884,1704964108445,-1500.0,0.00036363,2]
[311171885,1704964108467,-155.51170338,0.00036398,4]
[311171886,1704964108490,-1385.31710382,0.00036398,4]
[311171887,1704964108513,-656.45933268,0.00036398,4]
[311171888,1704964108536,-162.07109818,0.00036398,4]
[311171889,1704964108559,-4620.10854886,0.00036398,4]
[311171890,1704964108583,-319.37234731,0.00036398,2]
[311171891,1704964108608,-239.55154862,0.00036398,4]
[311171892,1704964108630,-265.1394672,0.00036398,4]
[311171893,1704964108800,-155.80431441,0.00036398,4]
[311171894,1704964108823,-234.20462803,0.00036398,4]
[311171895,1704964108847,-155.0,0.00036398,4]
[311171896,1704964108870,-7813.80880198,0.00036398,4]
[311171897,1704964108891,-1042.57746309,0.00036398,4]
[311171898,1704964108913,-224.54675658,0.00036398,4]
[311171899,1704964108936,-236.21730444,0.00036398,2]
[311171900,1704964108957,-317.27079666,0.00036398,4]
[311171901,1704964108980,-155.96554496,0.00036398,4]
[311171902,1704964109008,-562.53461967,0.00036398,4]
[311171903,1704964109030,-155.56975141,0.00036398,4]
[311171904,1704964109052,-1018.40422087,0.00036399,4]
[311171905,1704964109073,-309.96224457,0.00036399,2]
[311171906,1704964109097,-55469.4425,0.000364,2]
[311171907,1704964109119,-1000.0,0.000364,2]
[311171908,1704964109142,-1000.0,0.000364,2]
[311171909,1704964109164,-151.14854015,0.000364,2]
[311171910,1704964109187,-7214.627111,0.000364,9]
[311171911,1704964109208,-330.77392083,0.000364,2]
[311171912,1704964109240,-508.54851089,0.000364,7]
[311171913,1704964109267,-161.97,0.00036438,2]
[311171914,1704964109293,-150.78,0.00036462,2]
[311171915,1704964109317,-317.33046948,0.00036469,14]
[311171916,1704964109340,-2269.0,0.0003647,2]
[311171917,1704964109365,-19673.0,0.0003647,2]
[311171918,1704964109388,-150.0,0.0003647,2]
[311171919,1704964109411,-200.0,0.00036473,7]
[311171920,1704964109436,-527.65,0.00036474,2]
[311171921,1704964109459,-182.93491,0.0003649,2]
[311171922,1704964109482,-1369.39032862,0.00036498,4]
[311171923,1704964109507,-151.40111,0.00036498,6]
[311171924,1704964109529,-183073.6938984,0.000365,2]
[311171925,1704964109552,-630.0,0.000365,7]
[311171926,1704964109575,-1000.0,0.000365,6]
[311171927,1704964109598,-1000.0,0.000365,6]
[311171928,1704964109621,-1004.0,0.000365,6]
[311171929,1704964109644,-1004.0,0.000365,5]
[311171930,1704964109667,-9844.42,0.000365,7]
[311171931,1704964109691,-357.96,0.000365,7]
[311171932,1704964109715,-357.96,0.000365,7]
[311171933,1704964109738,-151.0,0.000365,7]
[311171934,1704964109761,-151.0,0.000365,7]
[311171935,1704964109784,-151.0,0.000365,7]
[311171936,1704964109806,-151.0,0.000365,7]
[311171937,1704964109829,-151.0,0.000365,7]
[311171938,1704964109852,-151.0,0.000365,7]
[311171939,1704964109874,-400.95,0.000365,7]
[311171940,1704964109896,-400.95,0.000365,7]
[311171941,1704964109918,-151.0,0.000365,7]
[311171942,1704964109941,-151.0,0.000365,7]
[311171943,1704964109967,-151.0,0.000365,7]
[311171944,1704964109989,-990.0,0.000365,30]
[311171945,1704964110012,-990.0,0.000365,30]
[311171946,1704964110034,-990.0,0.000365,30]
[311171947,1704964110056,-990.0,0.000365,30]
[311171948,1704964110087,-990.0,0.000365,30]
[311171949,1704964110111,-990.0,0.000365,30]
[311171950,1704964110135,-990.0,0.000365,30]
[311171951,1704964110157,-990.0,0.000365,30]
[311171952,1704964110179,-990.0,0.000365,30]
[311171953,1704964110201,-990.0,0.000365,30]
[311171954,1704964110224,-990.0,0.000365,30]
[311171955,1704964110250,-990.0,0.000365,30]
[311171956,1704964110274,-990.0,0.000365,30]
[311171957,1704964110297,-990.0,0.000365,30]
[311171958,1704964110320,-990.0,0.000365,30]
[311171959,1704964110343,-990.0,0.000365,30]
[311171960,1704964110368,-990.0,0.000365,30]
[311171961,1704964110390,-990.0,0.000365,30]
[311171962,1704964110413,-990.0,0.000365,30]
[311171963,1704964110435,-990.0,0.000365,30]
[311171964,1704964110457,-990.0,0.000365,30]
[311171965,1704964110479,-990.0,0.000365,30]
[311171966,1704964110501,-990.0,0.000365,30]
[311171967,1704964110523,-990.0,0.000365,30]
[311171968,1704964110546,-990.0,0.000365,30]
[311171969,1704964110569,-990.0,0.000365,30]
[311171970,1704964110591,-990.0,0.000365,30]
[311171971,1704964110615,-990.0,0.000365,30]
[311171972,1704964110638,-990.0,0.000365,30]
[311171973,1704964110660,-990.0,0.000365,30]
[311171974,1704964110682,-990.0,0.000365,30]
[311171975,1704964110704,-990.0,0.000365,30]
[311171976,1704964110726,-990.0,0.000365,30]
[311171977,1704964110748,-990.0,0.000365,30]
[311171978,1704964110771,-990.0,0.000365,30]
[311171979,1704964110793,-990.0,0.000365,30]
[311171980,1704964110815,-990.0,0.000365,30]
[311171981,1704964110839,-990.0,0.000365,30]
[311171982,1704964110864,-990.0,0.000365,30]
[311171983,1704964110887,-990.0,0.000365,30]
[311171984,1704964110917,-990.0,0.000365,30]
[311171985,1704964110939,-990.0,0.000365,30]
[311171986,1704964110966,-990.0,0.000365,30]
[311171987,1704964111124,-970.568696,0.000365,30]
[311171988,1704964111150,-200.0,0.00036506,10]
[311171989,1704964111172,-800.0,0.00036506,10]
[311171990,1704964111194,-176.05,0.00036548,2]
[311171991,1704964111217,-150.0,0.00036554,2]
[311171992,1704964111239,-300.0,0.00036556,2]
[311171993,1704964111263,-150.0,0.00036564,2]
[311171994,1704964111287,-150.0,0.00036568,2]
[311171995,1704964111316,-150.0,0.00036585,2]
[311171996,1704964111340,-150.0,0.00036589,2]
[311171997,1704964111365,-200.0,0.00036605,10]
[311171998,1704964111387,-800.0,0.00036605,10]
[311171999,1704964111412,-7214.627111,0.00036627,9]
[311172000,1704964111435,-152.0,0.0003665,3]
[311172001,1704964111460,-150.0,0.00036656,2]
[311172002,1704964111483,-150.0,0.00036665,2]
[311172003,1704964111507,-150.78,0.00036676,2]
[311172004,1704964111530,-150.0,0.00036678,2]
[311172005,1704964111554,-150.0,0.00036694,2]
[311172006,1704964111578,-151.40111,0.00036698,6]
[311172007,1704964111602,-17453.070033,0.000367,2]
[311172008,1704964111624,-2000.0,0.000367,2]
[311172009,1704964111646,-7500.0,0.000367,2]
[311172010,1704964111668,-200.0,0.00036703,10]
[311172011,1704964111691,-800.0,0.00036703,10]
[311172012,1704964111713,-200.0,0.00036703,7]
[311172013,1704964111737,-150.0,0.00036703,2]
[311172014,1704964111759,-500.0,0.00036722,2]
[311172015,1704964111782,-200.0,0.00036727,2]
[311172016,1704964111805,-300.0,0.00036729,30]
[311172017,1704964111827,-300.0,0.00036729,30]
[311172018,1704964111849,-317.03589178,0.00036729,30]
[311172019,1704964111873,-1530.85635704,0.00036735,2]
[311172020,1704964111896,-500.0,0.0003674,2]
[311172021,1704964111918,-1500.0,0.00036741,2]
[311172022,1704964111942,-150.0,0.00036742,2]
[311172023,1704964111965,-200.0,0.00036749,2]
[311172024,1704964111990,-152.92542249,0.00036752,2]
[311172025,1704964112013,-150.0,0.00036757,2]
[311172026,1704964112035,-500.0,0.00036759,2]
[311172027,1704964112058,-200.0,0.00036772,2]
[311172028,1704964112081,-300.0,0.00036775,2]
[311172029,1704964112105,-500.0,0.00036777,2]
[311172030,1704964112128,-150.0,0.00036781,2]
[311172031,1704964112151,-300.0,0.00036782,2]
[311172032,1704964112173,-301.84232372,0.00036784,2]
[311172033,1704964112195,-150.0,0.00036793,2]
[311172034,1704964112218,-500.0,0.00036795,2]
[311172035,1704964112240,-200.0,0.00036795,2]
[311172036,1704964112264,-150.0,0.00036796,2]
[311172037,1704964112286,-2776.04739328,0.00036798,4]
[311172038,1704964112308,-155.37801653,0.00036798,4]
[311172039,1704964112333,-399.88875683,0.00036798,4]
[311172040,1704964112357,-3140.59147314,0.00036798,4]
[311172041,1704964112379,-155.41153274,0.00036798,4]
[311172042,1704964112401,-160.58263052,0.00036798,4]
[311172043,1704964112425,-246.1670273,0.00036798,4]
[311172044,1704964112448,-473.29309601,0.00036798,4]
[311172045,1704964112470,-336.01782044,0.00036798,10]
[311172046,1704964112492,-10539.87918449,0.00036798,4]
[311172047,1704964112514,-1451.42969647,0.00036798,4]
[311172048,1704964112537,-155.25287291,0.00036798,4]
[311172049,1704964112558,-196.42298034,0.00036798,4]
[311172050,1704964112580,-3522.31932892,0.00036798,4]
[311172051,1704964112603,-3323.78268181,0.00036798,4]
[311172052,1704964112625,-270.12495605,0.00036798,4]
[311172053,1704964112647,-299.4377289,0.00036798,4]
[311172054,1704964112669,-360.7521332,0.00036798,2]
[311172055,1704964112691,-9984.481595,0.00036798,2]
[311172056,1704964112713,-150.0,0.00036799,2]
[311172057,1704964112736,-150.0,0.00036799,2]
[311172058,1704964112759,-150.01,0.00036799,2]
[311172059,1704964112783,-3291.64435569,0.00036799,2]
[311172060,1704964112806,-23377.3457,0.000368,3]
[311172061,1704964112829,-12676.08519042,0.000368,2]
[311172062,1704964113911,1000.0,0.00035692,10]
[311172063,1704964118153,150.0,0.00035735,2]
[311172064,1704964129217,614.237,0.00034399,2]
[311172065,1704964129616,1000.0,0.00035694,10]
[311172070,1704964145619,1000.0,0.00035694,10]
[311172071,1704964151914,-2959.5831,0.000364,2]
[311172072,1704964151937,-24186.1892,0.000364,2]
[311172073,1704964151964,-151.28303424,0.00036699,2]
[311172074,1704964151987,-2000.0,0.000367,2]
[311172075,1704964152009,-1811.61943464,0.00036715,2]
[311172076,1704964152035,-151.28303424,0.00036749,2]
[311172077,1704964152058,-365.2898959,0.00036794,2]
[311172078,1704964152082,-1000.0,0.00036798,4]
[311172079,1704964152103,-150.01,0.00036799,2]
[311172080,1704964152126,-3291.64435569,0.00036799,2]
[311172081,1704964152149,-317.27079666,0.00036799,4]
[311172082,1704964152173,-151.28303424,0.000368,2]
[311172083,1704964152195,-129234.29281925,0.000368,2]
[311172084,1704964152217,-151.0,0.000368,7]
[311172085,1704964152239,-151.005115,0.000368,7]
[311172086,1704964152261,-357.96,0.000368,7]
[311172087,1704964152282,-357.96,0.000368,7]
[311172088,1704964152305,-151.0,0.000368,7]
[311172089,1704964152327,-151.0,0.000368,7]
[311172090,1704964152349,-151.0,0.000368,7]
[311172091,1704964152370,-151.0,0.000368,7]
[311172092,1704964152393,-151.0,0.000368,7]
[311172093,1704964152416,-151.0,0.000368,7]
[311172094,1704964152438,-400.95,0.000368,7]
[311172095,1704964152464,-400.95,0.000368,7]
[311172096,1704964152486,-151.0,0.000368,7]
[311172097,1704964152508,-151.0,0.000368,7]
[311172098,1704964152530,-248.773677,0.000368,7]
[311172099,1704964152553,-150.0,0.00036802,2]
[311172100,1704964152577,-150.0,0.00036802,2]
[311172101,1704964152601,-150.0,0.00036803,2]
[311172102,1704964152628,-150.0,0.00036808,2]
[311172103,1704964152652,-150.0,0.00036809,2]
[311172104,1704964152677,-500.0,0.00036813,2]
[311172105,1704964152702,-219.61,0.00036813,2]
[311172106,1704964152725,-1000.0,0.00036815,2]
[311172107,1704964152748,-1000.0,0.00036815,2]
[311172108,1704964152770,-1000.0,0.00036815,2]
[311172109,1704964152935,-1000.0,0.00036815,2]
[311172110,1704964152959,-1000.0,0.00036815,2]
[311172111,1704964152980,-1000.0,0.00036815,2]
[311172112,1704964153002,-572.0966,0.00036815,2]
[311172113,1704964153026,-500.0,0.00036815,2]
[311172114,1704964153048,-500.0,0.00036815,2]
[311172115,1704964153071,-500.0,0.00036815,2]
[311172116,1704964153092,-500.0,0.00036815,2]
[311172117,1704964153114,-500.0,0.00036815,2]
[311172118,1704964153137,-500.0,0.00036815,2]
[311172119,1704964153159,-500.0,0.00036815,2]
[311172120,1704964153181,-500.0,0.00036815,2]
[311172121,1704964153206,-500.0,0.00036815,2]
[311172122,1704964153229,-500.0,0.00036815,2]
[311172123,1704964153251,-372.3755,0.00036815,2]
[311172124,1704964153273,-11944.4721,0.00036815,2]
[311172125,1704964153297,-200.0,0.00036817,2]
[311172126,1704964153320,-1350.28833619,0.00036819,2]
[311172127,1704964153344,-150.0,0.00036823,2]
[311172128,1704964153366,-500.0,0.00036831,2]
[311172129,1704964153387,-200.0,0.0003684,2]
[311172130,1704964153411,-150.0,0.00036843,2]
[311172131,1704964153434,-150.0,0.00036844,2]
[311172132,1704964153456,-500.0,0.00036849,2]
[311172133,1704964153479,-150.0,0.00036853,2]
[311172134,1704964153501,-250.0,0.00036854,2]
[311172135,1704964153523,-214.0,0.00036854,2]
[311172136,1704964153545,-150.0,0.00036854,2]
[311172137,1704964153567,-150.0,0.00036854,2]
[311172138,1704964153592,-150.425,0.00036854,2]
[311172139,1704964153614,-150.24,0.00036854,2]
[311172140,1704964153636,-154.0,0.00036854,2]